bitfinex-derivatives/quotes_SOLF0:USTF0_20240824
["timestamp","ask_amount","ask_price","bid_price","bid_amount"]
[1724513461926,3.151,158.61,158.56,3.7535]
[1724513462234,19.34,158.66,158.56,3.7535]
[1724513462530,19.34,158.66,158.56,23.0935]
[1724513462929,19.34,158.66,158.59,0.04812043]
[1724513463120,0.04517602,158.63,158.59,0.04812043]
[1724513463321,0.04517602,158.63,158.62,3.1507]
[1724513463531,0.04517602,158.63,158.59,19.38812043]
[1724513463934,0.04517602,158.63,158.61,3.1509]
[1724513464323,0.04517602,158.63,158.59,19.38812043]
[1724513465532,0.04517602,158.63,158.59,0.04812043]
[1724513466829,19.34,158.6,158.54,2.6178]
[1724513467132,19.34,158.68,158.54,2.6178]
[1724513467133,19.34,158.58,158.54,2.6178]
[1724513467530,19.34,158.59,158.54,2.6178]
[1724513468134,0.04600818,158.58,158.54,5.7699]
[1724513470332,0.04600818,158.58,158.55,3.1521]
[1724513470531,0.04600818,158.58,158.55,19.34]
[1724513470726,20.49808866,158.66,158.58,3.1514]
[1724513470932,19.34,158.66,158.55,19.34]
[1724513471127,3.1503,158.64,158.55,19.34]
[1724513471540,3.1502,158.65,158.57,19.34]
[1724513471742,20.633,158.71,158.59,19.34]
[1724513471944,0.04225891,158.63,158.61,19.34]
[1724513472128,19.34,158.71,158.61,19.34]
[1724513472334,19.34,158.71,158.62,1.3221]
[1724513472536,3.1488,158.72,158.63,19.34]
[1724513472836,19.34,158.75,158.65,19.34]
[1724513473038,19.34,158.77,158.65,19.34]
[1724513473230,19.34,158.77,158.62,1.3221]
[1724513473231,0.04407744,158.72,158.68,0.04604348]
[1724513473635,0.04407744,158.72,158.7,3.149]
[1724513474144,0.04407744,158.72,158.71,3.1489]
[1724513474333,19.34,158.79,158.7,1.2688]
[1724513474529,24.19,158.8,158.7,1.2688]
[1724513475634,0.04216478,158.77,158.73,24.23723869]
[1724513475933,0.04221955,158.77,158.76,3.1479]
[1724513476239,25.2,159.01,158.76,24.19]
[1724513476452,25.2,159.01,158.74,25.2]
[1724513476453,3.1446,158.93,158.83,24.19]
[1724513476744,1.4883,158.97,158.74,25.2]
[1724513476745,1.15632246,158.92,158.85,24.19]
[1724513476953,1.15632246,158.92,158.88,24.19]
[1724513477137,0.04490875,158.92,158.88,24.23551549]
[1724513477744,0.04490875,158.92,158.91,3.145]
[1724513478038,3.1432,159.0,158.94,3.1444]
[1724513478339,24.19,159.05,158.92,24.19]
[1724513478540,24.19,159.03,158.93,1.2119]
[1724513478836,1.15549873,159.02,158.93,1.2119]
[1724513479032,0.04550344,158.99,158.96,0.04712723]
[1724513480227,3.1437,158.98,158.96,0.04712723]
[1724513480633,3.1437,158.98,158.84,1.2623]
[1724513480634,24.19,158.97,158.86,24.19]
[1724513480832,3.144,158.96,158.86,24.19]
[1724513481537,3.1442,158.95,158.89,3.1454]
[1724513481734,0.04115323,158.94,158.9,0.04685344]
[1724513484342,24.19,158.93,158.9,0.04685344]
[1724513485847,27.3346,158.93,158.9,0.04685344]
[1724513486034,0.04115323,158.94,158.9,0.04685344]
[1724513487539,0.04115323,158.94,158.9,1.35875344]
[1724513487734,0.04115323,158.94,158.92,3.1446]
[1724513487934,0.04115323,158.94,158.9,1.35875344]
[1724513488436,0.04115323,158.94,158.91,3.1449]
[1724513488930,90.10982312,159.38,158.93,24.19]
[1724513488931,291.48572604,159.16,158.93,24.19]
[1724513489131,25.34543843,159.05,158.93,24.19]
[1724513489342,25.34543843,159.05,158.94,1.2738]
[1724513489343,24.19,159.05,158.94,1.2738]
[1724513489636,3.1434,159.0,158.94,1.2738]
[1724513489837,24.19,159.03,158.94,1.2738]
[1724513490039,0.04263799,159.0,158.97,0.04756623]
[1724513490245,3.1435,158.99,158.97,0.04756623]
[1724513490735,0.04263799,159.0,158.97,0.04756623]
[1724513492137,0.04263799,159.0,158.97,3.19136623]
[1724513493638,0.04263799,159.0,158.98,3.1434]
[1724513493834,25.4829,159.1,158.97,24.23756623]
[1724513494039,25.4829,159.1,158.99,24.19]
[1724513494040,1.1550153,159.09,158.99,24.19]
[1724513494838,0.04046326,159.06,159.02,24.23591358]
[1724513495038,0.04283285,159.06,159.04,24.19]
[1724513495244,3.1406,159.13,159.08,3.1415]
[1724513495437,24.19,159.17,159.05,1.2986]
[1724513495636,1.15452345,159.16,159.05,1.2986]
[1724513495833,3.141,159.12,159.07,3.1416]
[1724513496241,0.040436,159.11,159.08,0.04547392]
[1724513496634,0.040436,159.11,159.08,3.18697392]
[1724513497034,0.040436,159.11,159.09,3.1414]
[1724513497241,0.040436,159.11,159.09,24.19]
[1724513497634,1.15434959,159.18,159.09,24.19]
[1724513497842,1.15434959,159.17,159.09,24.19]
[1724513498042,1.15434959,159.16,159.12,24.19]
[1724513498244,24.19,159.22,159.12,24.19]
[1724513498439,1.15403386,159.21,159.12,24.19]
[1724513498745,0.0470642,159.18,159.15,0.04744133]
[1724513498944,0.04455798,159.18,159.15,0.0428165]
[1724513499245,1.15403386,159.17,159.15,0.0428165]
[1724513499452,0.04455798,159.18,159.15,0.0428165]
[1724513499751,1.15415754,159.17,159.15,0.0428165]
[1724513499944,0.04455798,159.18,159.15,0.0428165]
[1724513500142,1.15415715,159.17,159.15,0.0428165]
[1724513500346,0.04455798,159.18,159.15,0.0428165]
[1724513502649,24.19,159.24,159.15,0.0428165]
[1724513502853,1.15382987,159.23,159.15,0.0428165]
[1724513503048,1.15382987,159.22,159.14,24.19]
[1724513503239,1.15382987,159.21,159.13,1.2505]
[1724513503444,1.15382987,159.2,159.13,1.2505]
[1724513503642,0.04668434,159.18,159.15,0.0429541]
[1724513503845,3.1398,159.17,159.15,0.0429541]
[1724513504044,0.04668434,159.18,159.15,0.0429541]
[1724513504743,0.04668434,159.18,159.15,24.2329541]
[1724513505346,0.04668434,159.18,159.15,0.0429541]
[1724513506254,0.04668434,159.18,159.15,24.2329541]
[1724513506656,1.15367908,159.26,159.17,24.19]
[1724513506845,3.1389,159.22,159.17,27.3298]
[1724513507060,25.7491,159.29,159.17,24.19]
[1724513507250,24.19,159.23,159.13,1.2505]
[1724513507447,1.15369685,159.22,159.13,1.2505]
[1724513507651,0.04646707,159.19,159.16,0.04558862]
[1724513508554,3.1398,159.17,159.16,0.04558862]
[1724513511652,3.18596707,159.19,159.16,0.04558862]
[1724513511846,0.04646707,159.19,159.16,0.04558862]
[1724513512256,0.04646707,159.19,159.16,1.31288862]
[1724513512453,0.04646707,159.19,159.16,0.04558862]
[1724513513358,3.18596707,159.19,159.16,0.04558862]
[1724513514758,3.1397,159.18,159.16,0.04558862]
[1724513515461,3.1396,159.18,159.16,0.04558862]
[1724513515659,0.04646707,159.19,159.16,0.04558862]
[1724513516064,3.1398,159.17,159.16,0.04558862]
[1724513516561,0.04646707,159.19,159.16,0.04558862]
[1724513518071,3.1397,159.18,159.16,0.04558862]
[1724513518276,0.04646707,159.19,159.16,0.04558862]
[1724513518666,3.1397,159.18,159.16,0.04558862]
[1724513519072,3.18596707,159.19,159.16,0.04558862]
[1724513519276,0.04646707,159.19,159.16,0.04558862]
[1724513519573,3.1397,159.18,159.16,0.04558862]
[1724513519774,0.04646707,159.19,159.16,0.04558862]
[1724513520176,0.04646707,159.19,159.17,3.1398]
[1724513520372,0.04646707,159.19,159.16,0.04558862]
[1724513520572,24.19,159.36,159.13,1.2505]
[1724513520573,1.15361765,159.25,159.17,24.19]
[1724513520778,24.19,159.28,159.17,24.19]
[1724513520779,4.29211765,159.24,159.19,3.1394]
[1724513520976,24.19,159.28,159.19,3.1394]
[1724513521175,1.1536089,159.27,159.19,3.1394]
[1724513521377,1.1536089,159.26,159.19,3.1394]
[1724513521578,0.04025618,159.24,159.21,0.04702099]
[1724513522785,3.1374,159.3,159.25,3.1383]
[1724513522980,1.15342035,159.29,159.25,3.1383]
[1724513523282,1.15342035,159.28,159.25,3.1383]
[1724513523575,1.2266,159.34,159.25,24.19]
[1724513523782,0.04406835,159.31,159.28,0.0414843]
[1724513524080,0.04406835,159.31,159.28,3.1789843]
[1724513524081,1.1532558,159.3,159.28,3.1789843]
[1724513524279,1.1532558,159.29,159.28,0.0414843]
[1724513524487,1.1532558,159.3,159.28,0.0414843]
[1724513524776,0.04406835,159.31,159.28,0.0414843]
[1724513526080,24.19,159.41,159.29,24.19]
[1724513526276,1.15269435,159.4,159.3,2.5859]
[1724513526477,1.15269435,159.39,159.31,3.1371]
[1724513526673,1.15269435,159.38,159.31,24.19]
[1724513526879,1.15269435,159.37,159.31,24.19]
[1724513527085,0.04334824,159.36,159.34,24.19]
[1724513527285,0.04712211,159.37,159.34,24.19]
[1724513527584,0.04082584,159.37,159.34,24.23298617]
[1724513528083,0.04082584,159.37,159.35,3.1363]
[1724513528390,0.04082584,159.37,159.34,0.04298617]
[1724513528620,3.17682584,159.37,159.34,0.04298617]
[1724513528790,0.04082584,159.37,159.34,0.04298617]
[1724513529188,3.1363,159.35,159.34,0.04298617]
[1724513529794,4.28904565,159.35,159.34,0.04298617]
[1724513530186,3.1363,159.35,159.34,0.04298617]
[1724513530387,4.28901478,159.35,159.34,0.04298617]
[1724513530985,4.28901478,159.35,159.26,24.19]
[1724513530986,3.1373,159.3,159.26,24.19]
[1724513531386,24.19,159.35,159.26,24.19]
[1724513531685,1.15294698,159.34,159.26,24.19]
[1724513531909,1.15294698,159.33,159.26,24.19]
[1724513532092,0.04671432,159.32,159.28,0.04521559]
[1724513532294,3.1372,159.31,159.28,0.04521559]
[1724513532497,0.04671432,159.32,159.28,0.04521559]
[1724513532688,1.15303194,159.31,159.28,0.04521559]
[1724513532888,3.1375,159.29,159.28,0.04521559]
[1724513533193,4.29063061,159.29,159.28,0.04521559]
[1724513534490,3.1375,159.29,159.28,0.04521559]
[1724513536091,3.1373,159.31,159.28,0.04521559]
[1724513536296,0.04671432,159.32,159.28,0.04521559]
[1724513536696,0.04671432,159.32,159.28,24.23521559]
[1724513536893,0.04671432,159.32,159.3,24.19]
[1724513537094,0.04671432,159.32,159.31,3.1371]
[1724513537400,0.04671432,159.32,159.3,24.19]
[1724513537401,24.19,159.45,159.3,24.19]
[1724513537593,3.1353,159.41,159.35,3.1362]
[1724513537893,24.19,159.45,159.35,1.2518]
[1724513538195,3.1355,159.4,159.35,1.2518]
[1724513538401,3.1355,159.4,159.38,0.04114853]
[1724513539191,0.04332299,159.42,159.38,0.04114853]
[1724513539695,3.17842299,159.42,159.38,0.04114853]
[1724513539898,0.04332299,159.42,159.38,0.04114853]
[1724513540491,0.04332299,159.42,159.39,24.19]
[1724513540693,0.04332299,159.42,159.39,25.4991]
[1724513540989,3.1342,159.46,159.41,24.19]
[1724513541199,24.19,159.54,159.43,24.19]
[1724513541387,1.15202494,159.53,159.43,24.19]
[1724513541589,1.15202494,159.52,159.45,24.19]
[1724513541792,3.20694852,159.57,159.45,24.19]
[1724513541987,1.15170912,159.56,159.45,24.19]
[1724513542195,1.15170912,159.55,159.49,0.03971665]
[1724513542399,1.15170912,159.54,159.49,0.03971665]
[1724513542590,1.15170912,159.53,159.49,0.03971665]
[1724513542795,1.15170912,159.52,159.49,0.03971665]
[1724513542998,1.15170912,159.51,159.49,0.03971665]
[1724513543291,27.26314287,159.58,159.49,0.03971665]
[1724513543499,3.1332,159.51,159.49,0.03971665]
[1724513545492,3.1333,159.5,159.49,0.03971665]
[1724513546495,3.1332,159.51,159.49,0.03971665]
[1724513547733,27.26314287,159.58,159.49,0.03971665]
[1724513547897,1.1517171,159.57,159.49,0.03971665]
[1724513548094,1.1517171,159.56,159.49,0.03971665]
[1724513548298,3.1329,159.53,159.49,0.03971665]
[1724513548501,1.1517171,159.52,159.49,0.03971665]
[1724513548699,3.1329,159.53,159.49,0.03971665]
[1724513548891,4.28464429,159.52,159.49,0.03971665]
[1724513549092,27.26314287,159.58,159.49,0.03971665]
[1724513549405,1.15169929,159.57,159.49,0.03971665]
[1724513549696,1.15169929,159.56,159.49,0.03971665]
[1724513549902,1.15169929,159.55,159.49,0.03971665]
[1724513550099,1.15169929,159.54,159.49,0.03971665]
[1724513550300,1.15169929,159.53,159.49,0.03971665]
[1724513550503,1.15169929,159.52,159.49,0.03971665]
[1724513550704,3.1333,159.51,159.49,0.03971665]
[1724513551699,24.19,159.56,159.49,0.03971665]
[1724513551906,27.26314287,159.58,159.41,25.498]
[1724513551907,24.19,159.54,159.41,25.498]
[1724513552197,24.19,159.52,159.41,25.498]
[1724513552401,1.15174848,159.51,159.41,25.498]
[1724513552700,3.1337,159.49,159.41,25.498]
[1724513552902,0.04047296,159.47,159.43,3.18120306]
[1724513553296,0.04047296,159.47,159.43,24.23660306]
[1724513553697,0.04047296,159.47,159.46,24.19]
[1724513554702,0.04047296,159.47,159.46,27.3241]
[1724513555395,3.1331,159.51,159.46,27.3241]
[1724513555607,3.1334,159.5,159.46,27.3241]
[1724513556100,24.19,159.58,159.44,24.19]
[1724513556101,3.1337,159.49,159.44,24.19]
[1724513556306,24.19,159.56,159.44,24.19]
[1724513556506,1.15178646,159.55,159.48,0.04110802]
[1724513556705,3.1335,159.49,159.48,0.04110802]
[1724513557104,1.15193083,159.49,159.41,25.498]
[1724513557334,24.19,159.51,159.41,25.498]
[1724513557335,3.1344,159.45,159.41,25.498]
[1724513557506,24.19,159.51,159.41,25.498]
[1724513557706,1.15200996,159.5,159.41,25.498]
[1724513558204,0.04706045,159.47,159.44,0.04167697]
[1724513558901,0.04706045,159.47,159.44,24.23167697]
[1724513559312,0.04706045,159.47,159.46,3.1341]
[1724513560012,0.04706045,159.47,159.45,3.1343]
[1724513560208,0.04706045,159.47,159.44,24.23167697]
[1724513560707,0.04706045,159.47,159.45,3.1342]
[1724513560908,0.04706045,159.47,159.44,24.23167697]
[1724513561507,0.04706045,159.47,159.45,3.1343]
[1724513562012,0.04706045,159.47,159.44,24.23167697]
[1724513563512,0.04706045,159.47,159.46,24.19]
[1724513564108,0.04706045,159.47,159.44,24.23167697]
[1724513564305,0.04706045,159.47,159.44,0.04167697]
[1724513564514,0.04706045,159.47,159.44,24.23167697]
[1724513565708,0.04706045,159.47,159.46,24.19]
[1724513566213,1.15175495,159.55,159.46,24.19]
[1724513566412,1.15175495,159.54,159.5,24.19]
[1724513566711,1.2665,159.57,159.48,24.19]
[1724513567010,1.15159586,159.56,159.48,24.19]
[1724513567204,1.15164361,159.55,159.51,0.04204412]
[1724513567407,1.15164361,159.54,159.51,0.04204412]
[1724513567608,1.2665,159.57,159.51,0.04204412]
[1724513567814,1.15166785,159.56,159.51,0.04204412]
[1724513568810,3.1328,159.53,159.51,0.04204412]
[1724513569011,1.2665,159.57,159.51,0.04204412]
[1724513569210,1.15169166,159.56,159.51,0.04204412]
[1724513570212,3.1327,159.54,159.51,0.04204412]
[1724513570541,24.19,159.61,159.51,0.040341]
[1724513570708,1.15158981,159.6,159.54,0.04163474]
[1724513570908,3.1321,159.57,159.54,0.04163474]
[1724513571207,1.15158981,159.56,159.54,0.04163474]
[1724513571419,27.25066641,159.61,159.54,0.04163474]
[1724513571708,4.28230957,159.6,159.54,0.04163474]
[1724513571910,24.19,159.63,159.55,0.04650069]
[1724513571911,1.15151176,159.59,159.55,0.04650069]
[1724513572102,27.33395243,159.63,159.55,0.04650069]
[1724513572302,1.15133485,159.62,159.55,0.04650069]
[1724513572506,3.1314,159.6,159.55,0.04650069]
[1724513573011,24.19,159.7,159.57,24.19]
[1724513573205,1.15102124,159.69,159.62,0.04664119]
[1724513573508,2.7284,159.73,159.62,0.04664119]
[1724513573509,3.1308,159.63,159.62,0.04664119]
[1724513573717,1.15102124,159.63,159.61,0.04060504]
[1724513574310,3.131,159.62,159.61,0.04060504]
[1724513574508,4.28208177,159.62,159.61,0.04060504]
[1724513574909,4.28212122,159.62,159.61,0.04060504]
[1724513575912,1.15112122,159.62,159.52,25.06]
[1724513576106,24.19,159.6,159.48,24.19]
[1724513576307,3.1333,159.5,159.46,25.4291]
[1724513576529,24.19,159.58,159.46,25.4291]
[1724513576814,0.03978195,159.54,159.5,0.0427674]
[1724513577517,3.16329856,159.54,159.5,0.0427674]
[1724513578116,3.16329856,159.54,159.45,25.06]
[1724513578117,1.15172965,159.53,159.41,24.19]
[1724513578909,3.1344,159.45,159.41,24.19]
[1724513579210,3.17447247,159.45,159.41,24.23789567]
[1724513580609,0.04007247,159.45,159.44,24.19]
[1724513580822,3.12351661,159.54,159.44,24.19]
[1724513581015,1.2485,159.57,159.47,24.19]
[1724513581214,1.15176352,159.56,159.44,24.19]
[1724513581411,25.34176352,159.56,159.44,24.19]
[1724513581612,3.1343,159.46,159.44,24.19]
[1724513581811,3.1343,159.46,159.43,0.04584375]
[1724513582314,3.1345,159.44,159.43,0.04584375]
[1724513583219,3.1344,159.45,159.43,0.04584375]
[1724513583414,0.04226983,159.47,159.44,24.19]
[1724513583617,1.2485,159.57,159.44,24.19]
[1724513583618,1.15189656,159.54,159.44,24.19]
[1724513583918,1.2872,159.56,159.39,1.2108]
[1724513583919,1.2872,159.56,159.46,24.19]
[1724513584114,1.15171147,159.55,159.46,24.19]
[1724513584714,1.15171147,159.55,159.49,0.03970236]
[1724513584921,3.1333,159.5,159.49,0.03970236]
[1724513585223,3.18344118,159.49,159.43,24.19]
[1724513585410,3.1343,159.46,159.43,24.19]
[1724513585815,3.07032875,159.48,159.43,24.19]
[1724513586015,24.19,159.55,159.43,24.19]
[1724513586016,0.04073249,159.47,159.44,0.04113109]
[1724513586316,0.04073249,159.47,159.44,0.04180447]
[1724513587518,3.1343,159.45,159.44,0.04180447]
[1724513588717,3.1354,159.4,159.37,26.3839]
[1724513589115,27.270982,159.48,159.37,26.3839]
[1724513589320,3.135,159.42,159.37,25.06]
[1724513589720,0.04155222,159.41,159.38,0.04282892]
[1724513590119,3.17665222,159.41,159.38,0.04282892]
[1724513590322,0.04155222,159.41,159.38,0.04282892]
[1724513592524,3.17675222,159.41,159.38,0.04282892]
[1724513592926,0.04155222,159.41,159.38,3.17842892]
[1724513593224,0.04155222,159.41,159.38,24.23282892]
[1724513593425,0.04155222,159.41,159.4,24.19]
[1724513593621,3.134,159.47,159.4,24.19]
[1724513593826,1.2152,159.52,159.4,24.19]
[1724513594223,1.2152,159.52,159.41,3.135]
[1724513594422,1.2152,159.52,159.4,24.19]
[1724513594629,0.04098475,159.48,159.44,0.04268329]
[1724513594823,3.10456195,159.48,159.44,0.04268329]
[1724513595034,0.04098475,159.48,159.44,0.04268329]
[1724513595332,3.134,159.47,159.44,0.04268329]
[1724513595523,0.04098475,159.48,159.44,0.04268329]
[1724513596030,0.04098475,159.48,159.45,27.3242]
[1724513597128,0.04098475,159.48,159.45,24.19]
[1724513599227,0.04098475,159.48,159.45,27.3243]
[1724513601025,0.04098475,159.48,159.45,24.19]
[1724513601828,3.17468475,159.48,159.45,24.19]
[1724513602326,0.04098475,159.48,159.45,24.19]
[1724513602527,0.04098475,159.48,159.44,0.04268329]
[1724513602727,0.04098475,159.48,159.44,4.49538329]
[1724513603530,0.04098475,159.48,159.44,1.36088329]
[1724513603835,3.14127433,159.48,159.44,0.04268329]
[1724513604024,0.04098475,159.48,159.44,0.04268329]
[1724513604836,3.1343,159.46,159.44,0.04268329]
[1724513606828,3.1343,159.45,159.44,0.04268329]
[1724513607146,0.04098475,159.48,159.44,0.04268329]
[1724513607934,3.134,159.47,159.44,0.04268329]
[1724513608160,0.04098475,159.48,159.44,0.04268329]
[1724513609341,3.17468475,159.48,159.44,3.17718329]
[1724513609838,3.17468475,159.48,159.44,0.04268329]
[1724513610041,3.134,159.47,159.44,0.04268329]
[1724513613540,3.17478475,159.48,159.44,0.04268329]
[1724513613741,0.04098475,159.48,159.45,19.25]
[1724513613941,0.04098475,159.48,159.47,19.25]
[1724513614146,0.04098475,159.48,159.47,22.3839]
[1724513614340,3.20766414,159.55,159.5,19.25]
[1724513614642,19.5118,159.59,159.5,19.25]
[1724513614841,1.15160383,159.58,159.5,19.25]
[1724513615040,3.1329,159.53,159.48,19.25]
[1724513615230,3.1329,159.53,159.49,0.04370987]
[1724513615437,19.25,159.57,159.49,0.04370987]
[1724513616037,19.25,159.55,159.49,0.04370987]
[1724513616237,19.25,159.55,159.5,0.04207309]
[1724513616440,3.1333,159.51,159.5,0.04207309]
[1724513616740,19.25,159.55,159.5,0.04207309]
[1724513616946,3.1331,159.52,159.5,0.04207309]
[1724513622448,3.1331,159.51,159.5,0.04207309]
[1724513626346,57.75467054,159.62,159.5,0.04207309]
[1724513626554,19.25,159.6,159.54,0.0405985]
[1724513626851,3.1324,159.55,159.54,0.0405985]
[1724513628153,3.1331,159.52,159.47,3.1338]
[1724513628347,19.25,159.51,159.41,1.3181]
[1724513628551,19.25,159.51,159.42,2.84280438]
[1724513628739,19.25,159.51,159.41,20.5681]
[1724513628940,3.1339,159.48,159.43,3.1346]
[1724513629145,0.0405985,159.47,159.44,0.03975225]
[1724513629754,3.1343,159.45,159.44,0.03975225]
[1724513630149,0.0405985,159.47,159.44,0.03975225]
[1724513630358,3.1343,159.45,159.44,0.03975225]
[1724513636356,19.25,159.45,159.24,226.0]
[1724513636560,19.25,159.4,159.32,1.2347]
[1724513636763,19.25,159.38,159.32,1.2347]
[1724513636959,3.14651602,159.38,159.25,1.2964]
[1724513637256,19.25,159.35,159.28,3.1377]
[1724513637449,0.04516672,159.33,159.3,0.04424044]
[1724513638056,19.25,159.32,159.3,0.04424044]
[1724513638558,3.1371,159.31,159.3,0.04424044]
[1724513638749,19.29516672,159.33,159.3,0.04424044]
[1724513639154,3.1369,159.32,159.3,0.04424044]
[1724513640057,0.04516672,159.33,159.3,0.04424044]
[1724513640360,19.29516672,159.33,159.3,0.04424044]
[1724513640548,3.1371,159.31,159.3,0.04424044]
[1724513640749,0.04516672,159.33,159.3,0.04424044]
[1724513643364,3.18186672,159.33,159.3,0.04424044]
[1724513644958,0.04516672,159.33,159.3,0.04424044]
[1724513645463,3.18186672,159.33,159.3,0.04424044]
[1724513646553,3.1369,159.32,159.3,0.04424044]
[1724513646960,0.04516672,159.33,159.3,0.04424044]
[1724513647361,3.18186672,159.33,159.3,0.04424044]
[1724513650760,0.04516672,159.33,159.3,0.04424044]
[1724513651361,3.18206672,159.33,159.3,0.04424044]
[1724513651557,0.04516672,159.33,159.3,0.04424044]
[1724513652364,19.25,159.32,159.3,0.04424044]
[1724513652669,0.04516672,159.33,159.22,25.06]
[1724513652870,19.25,159.26,159.15,1.2609]
[1724513653262,22.31933479,159.26,159.16,19.25]
[1724513653462,1.2967,159.3,159.18,19.25]
[1724513653463,19.25,159.29,159.18,19.25]
[1724513653767,1.2838,159.31,159.15,1.2609]
[1724513653768,0.04027089,159.25,159.22,0.04759325]
[1724513653963,0.04027089,159.25,159.22,3.18639325]
[1724513654165,0.04027089,159.25,159.22,0.04759325]
[1724513656060,19.29027089,159.25,159.22,0.04759325]
[1724513656665,3.1386,159.23,159.22,0.04759325]
[1724513657464,22.3886,159.23,159.22,0.04759325]
[1724513658964,3.1386,159.23,159.22,0.04759325]
[1724513664473,0.04027089,159.25,159.22,0.04759325]
[1724513665877,3.17857089,159.25,159.22,0.04759325]
[1724513666966,3.1385,159.24,159.22,0.04759325]
[1724513668273,0.04027089,159.25,159.22,0.04759325]
[1724513668572,3.1386,159.23,159.22,0.04759325]
[1724513668769,0.04027089,159.25,159.22,0.04759325]
[1724513670070,3.1385,159.24,159.22,0.04759325]
[1724513670264,0.04027089,159.25,159.22,0.04759325]
[1724513671467,0.04027089,159.25,159.22,1.32969325]
[1724513671673,0.04027089,159.25,159.23,3.1386]
[1724513672673,0.04027089,159.25,159.24,3.1385]
[1724513672976,0.04027089,159.25,159.22,1.32969325]
[1724513673180,0.04027089,159.25,159.23,3.1385]
[1724513673381,0.04027089,159.25,159.22,1.32969325]
[1724513673774,1.3085,159.35,159.29,3.1375]
[1724513674002,1.3085,159.35,159.24,19.25]
[1724513674003,1.15308068,159.34,159.24,19.25]
[1724513674682,87.73474532,159.36,159.28,3.1376]
[1724513674870,87.73474532,159.36,159.22,1.2821]
[1724513674871,0.04281984,159.31,159.22,1.2821]
[1724513675071,0.04281984,159.31,159.28,3.1376]
[1724513675270,0.04281984,159.31,159.27,19.25]
[1724513675979,0.04281984,159.31,159.27,22.3877]
[1724513676183,0.04281984,159.31,159.27,19.25]
[1724513676976,0.04281984,159.31,159.28,3.1375]
[1724513679885,0.04281984,159.31,159.29,3.1374]
[1724513680079,0.04281984,159.31,159.28,0.04365181]
[1724513680277,0.04281984,159.31,159.28,2.58955181]
[1724513680508,0.04281984,159.31,159.3,3.1373]
[1724513680980,22.36767766,159.38,159.32,3.1369]
[1724513680981,3.1361,159.36,159.32,3.1369]
[1724513681185,19.25,159.4,159.32,3.1369]
[1724513681385,1.15280266,159.39,159.29,20.5055]
[1724513681587,3.1361,159.36,159.31,3.1369]
[1724513681986,0.0400746,159.35,159.32,0.04583657]
[1724513683479,0.0400746,159.35,159.32,3.18263657]
[1724513685088,0.0400746,159.35,159.33,3.1366]
[1724513687186,0.0400746,159.35,159.32,3.18263657]
[1724513689091,19.25,159.42,159.33,19.25]
[1724513689393,19.25,159.44,159.33,19.25]
[1724513689580,1.15262346,159.43,159.33,19.25]
[1724513689983,3.1354,159.4,159.35,3.1361]
[1724513690186,3.1354,159.4,159.36,0.04277842]
[1724513691585,22.42318512,159.44,159.37,3.1359]
[1724513692190,3.1351,159.41,159.37,3.1359]
[1724513692395,22.42318512,159.44,159.37,3.1359]
[1724513692697,3.135,159.42,159.37,3.1359]
[1724513693283,3.1348,159.43,159.38,3.1356]
[1724513693490,3.12563353,159.44,159.39,0.04277301]
[1724513694201,3.8076,159.51,159.39,19.29277301]
[1724513694426,3.8076,159.51,159.39,19.25]
[1724513694701,19.25,159.5,159.43,0.04710864]
[1724513694903,19.25,159.5,159.43,3.18180864]
[1724513694904,3.1339,159.48,159.43,3.18180864]
[1724513696496,3.1336,159.49,159.43,3.18180864]
[1724513697003,19.25,159.5,159.43,0.04710864]
[1724513697191,3.1337,159.49,159.43,0.04710864]
[1724513697596,19.25,159.5,159.43,0.04710864]
[1724513698001,3.1339,159.48,159.43,0.04710864]
[1724513699296,3.1339,159.48,159.43,3.18180864]
[1724513699501,22.39901087,159.52,159.43,0.04710864]
[1724513699710,19.25,159.5,159.43,0.04710864]
[1724513700004,19.25,159.48,159.43,0.04710864]
[1724513700306,19.25,159.45,159.44,0.04064396]
[1724513700702,22.3843,159.45,159.44,0.04064396]
[1724513702110,3.9292,159.55,159.44,0.04064396]
[1724513702111,19.25,159.47,159.44,0.04064396]